bitfinex/quotes_ETHUSD_20240715
["timestamp","ask_amount","ask_price","bid_price","bid_amount"]
[1721006154680,9.629416,3290.8,3289.8,2.73571]
[1721006154883,1.02137202,3290.7,3289.9,2.73564]
[1721006155123,0.58430424,3290.9,3289.9,2.73564]
[1721006155687,0.3182584,3290.9,3290.2,2.73538]
[1721006155920,2.2675,3291.6,3290.4,2.73516]
[1721006156226,0.31821209,3291.4,3290.5,2.73513]
[1721006156426,0.31821209,3291.4,3290.6,3.06928462]
[1721006156587,0.31821209,3291.4,3290.7,2.73497]
[1721006156790,2.2675,3292.2,3291.1,2.73464]
[1721006157090,2.2675,3292.2,3291.3,2.73447]
[1721006157091,2.58569754,3292.2,3291.3,2.73447]
[1721006157292,2.58569754,3292.2,3291.4,2.79513954]
[1721006157492,2.58569754,3292.2,3291.5,2.73426]
[1721006157901,2.58569754,3292.2,3290.7,4.8665]
[1721006157902,7.511409,3292.1,3291.1,2.73463]
[1721006158208,9.629416,3292.1,3290.8,2.73485]
[1721006158407,2.58569754,3292.2,3290.9,3.0]
[1721006159348,9.629416,3292.1,3290.2,6.14636]
[1721006159653,2.2675,3292.0,3290.3,3.845386]
[1721006159824,2.2675,3292.0,3290.7,2.73497]
[1721006160720,2.2675,3292.0,3291.1,2.73463]
[1721006160918,2.55669507,3292.0,3291.1,2.73463]
[1721006161252,9.629416,3291.9,3290.3,3.845386]
[1721006161461,2.55669507,3292.0,3290.9,2.73474]
[1721006161662,9.629416,3291.9,3290.6,2.73505]
[1721006161946,2.55669507,3292.0,3290.6,2.73505]
[1721006162148,0.25566951,3291.9,3290.6,2.73505]
[1721006162943,0.47694164,3291.6,3290.6,2.73505]
[1721006163171,0.47694164,3291.6,3291.0,2.73469]
[1721006163815,0.47694164,3291.6,3291.2,2.73455]
[1721006164057,0.47694164,3291.6,3291.4,2.73438]
[1721006164742,0.47694164,3291.6,3291.2,2.73455]
[1721006164925,0.47694164,3291.6,3291.1,2.73463]
[1721006166618,0.31819754,3292.2,3291.4,2.73438]
[1721006168140,0.31819754,3292.2,3291.5,2.79506507]
[1721006168325,7.47,3293.0,3291.8,2.73404]
[1721006168536,0.31822079,3293.4,3292.4,2.73356]
[1721006168773,0.31822079,3293.4,3292.6,2.73335]
[1721006169372,2.4765,3293.6,3292.9,2.73314]
[1721006169538,2.871032,3293.5,3292.9,2.73314]
[1721006169745,9.629416,3293.8,3292.7,2.73327]
[1721006169954,0.79490131,3293.9,3293.1,2.73298]
[1721006170169,1.11326144,3293.9,3293.1,2.73298]
[1721006170369,0.47676623,3293.9,3293.3,2.73281]
[1721006170666,0.47676623,3293.9,3293.1,2.73296]
[1721006171670,0.47676623,3293.9,3293.2,2.7329]
[1721006172262,0.47676623,3293.9,3293.3,0.06071961]
[1721006172435,0.47676623,3293.9,3293.5,2.73264]
[1721006172758,0.47676623,3293.9,3293.6,0.33397661]
[1721006172936,0.47676623,3293.9,3293.6,2.79327261]
[1721006173460,0.47676623,3293.9,3293.8,2.7324]
[1721006173641,0.47676623,3293.9,3293.8,5.4648]
[1721006173835,0.47676623,3293.9,3293.3,2.79347117]
[1721006173836,0.31803404,3294.9,3294.3,5.46398]
[1721006174047,2.539652,3295.9,3294.3,5.46398]
[1721006174248,2.85762879,3295.9,3294.3,5.46398]
[1721006174470,2.85762879,3295.9,3294.7,2.73164]
[1721006174699,2.85762879,3295.9,3294.4,2.73182]
[1721006174846,2.85762879,3295.9,3294.6,2.73173]
[1721006175046,2.85762879,3295.9,3294.7,2.73164]
[1721006175246,2.85762879,3295.9,3294.8,2.73156]
[1721006175479,0.117552,3295.9,3295.1,2.7313]
[1721006175656,0.117552,3295.9,3293.6,4.5615]
[1721006175657,9.629416,3295.8,3293.6,4.5615]
[1721006175869,0.43548338,3295.9,3294.5,2.73182]
[1721006175870,1.00648994,3295.7,3294.5,2.73182]
[1721006176051,0.43548338,3295.9,3294.5,2.73182]
[1721006176254,0.43548338,3295.9,3294.3,0.24654]
[1721006176478,0.43548338,3295.9,3293.7,8.7829]
[1721006176479,2.2538,3295.8,3294.1,2.73209]
[1721006176887,0.55,3295.7,3294.1,2.73209]
[1721006177059,0.55,3295.7,3295.6,0.30576357]
[1721006177258,0.55,3295.7,3294.1,2.73209]
[1721006177259,10.179416,3295.7,3294.1,2.73209]
[1721006177464,0.55,3295.7,3294.2,2.73204]
[1721006177677,0.28038,3295.6,3294.2,3.005244]
[1721006178194,0.28038,3295.6,3294.4,2.73183]
[1721006178556,0.28038,3295.6,3294.2,3.005244]
[1721006178557,0.28038,3295.6,3294.2,0.273204]
[1721006179090,0.28038,3295.6,3294.0,2.73222]
[1721006179289,0.28038,3295.6,3294.1,5.73214]
[1721006179495,0.28038,3295.6,3294.3,2.73198]
[1721006179994,0.28038,3295.6,3294.0,2.73221]
[1721006180289,0.28038,3295.6,3294.1,5.73214]
[1721006180503,0.43548338,3295.9,3294.6,2.73173]
[1721006180652,0.117552,3295.9,3295.4,2.73107]
[1721006180848,0.117552,3295.9,3295.5,0.06067327]
[1721006181052,0.117552,3295.9,3295.3,2.73116]
[1721006181275,0.117552,3295.9,3295.4,3.57918288]
[1721006181496,0.117552,3295.9,3295.7,2.73075]
[1721006181788,0.117552,3295.9,3295.8,7.77795299]
[1721006181994,0.47640953,3297.2,3296.5,2.73016]
[1721006182199,2.392,3297.9,3296.5,5.73016]
[1721006182411,11.1972411,3296.6,3296.0,2.7305]
[1721006182556,1.5678251,3296.6,3295.4,10.59021288]
[1721006182756,1.5678251,3296.6,3295.5,5.73095]
[1721006182953,1.5678251,3296.6,3294.5,2.2716]
[1721006182954,9.629416,3296.5,3294.5,2.2716]
[1721006183149,1.5678251,3296.6,3294.5,2.2716]
[1721006183395,1.5678251,3296.6,3295.0,3.411]
[1721006183554,1.5678251,3296.6,3295.8,2.73071]
[1721006183754,1.5678251,3296.6,3296.2,2.73037]
[1721006183952,1.5678251,3296.6,3296.3,2.73033]
[1721006184157,1.5678251,3296.6,3296.0,2.73057]
[1721006184158,1.5678251,3296.6,3296.4,2.73024]
[1721006184387,1.5678251,3296.6,3296.1,2.3908]
[1721006184388,1.5678251,3296.6,3296.5,3.003184]
[1721006184715,1.5678251,3296.6,3296.5,9.283344]
[1721006185067,1.5678251,3296.6,3296.5,12.013504]
[1721006185068,0.65385221,3296.6,3296.5,12.013504]
[1721006185389,0.005,3298.6,3298.3,2.72863]
[1721006185563,0.005,3298.6,3298.4,0.272863]
[1721006185764,0.005,3298.6,3298.5,5.45702]
[1721006185969,0.005,3298.6,3298.5,3.0]
[1721006186198,0.005,3298.6,3298.4,0.272863]
[1721006186199,0.005,3298.6,3298.4,3.272863]
[1721006186407,0.005,3298.6,3298.4,0.272863]
[1721006186702,0.005,3298.6,3298.1,3.0]
[1721006186871,0.005,3298.6,3298.0,2.72889]
[1721006187065,0.005,3298.6,3297.4,5.08127]
[1721006187306,0.005,3298.6,3297.1,2.4537]
[1721006187602,0.005,3298.6,3297.6,2.72917]
[1721006187902,0.005,3298.6,3296.8,2.7299]
[1721006188121,0.005,3298.6,3296.5,0.33366992]
[1721006188122,2.4773,3298.4,3296.5,0.33366992]
[1721006188403,2.4773,3298.4,3296.6,2.73]
[1721006188607,2.4773,3298.4,3296.5,0.273024]
[1721006188901,2.4773,3298.4,3296.2,2.73041]
[1721006189120,0.55,3298.3,3296.3,0.06065276]
[1721006189338,2.4773,3298.4,3296.3,0.06065276]
[1721006189603,3.0,3298.3,3296.3,0.06065276]
[1721006189808,2.4773,3298.4,3296.7,2.72996]
[1721006190103,0.005,3298.6,3296.8,3.06354031]
[1721006190309,0.005,3298.6,3297.3,2.7295]
[1721006190805,0.005,3298.6,3297.4,0.06063455]
[1721006190960,0.005,3298.6,3297.6,2.72925]
[1721006191170,0.005,3298.6,3297.7,0.06062811]
[1721006191398,0.005,3298.6,3297.8,0.27898781]
[1721006191620,0.005,3298.6,3297.9,0.06062813]
[1721006191764,0.005,3298.6,3297.8,0.27898781]
[1721006191970,0.005,3298.6,3297.0,0.06063439]
[1721006192171,0.005,3298.6,3296.9,3.0]
[1721006192392,0.005,3298.6,3297.0,0.00357051]
[1721006192708,0.005,3298.6,3297.0,0.05633717]
[1721006192874,0.005,3298.6,3296.9,0.05844754]
[1721006193214,11.956716,3298.5,3296.9,0.05844754]
[1721006193387,0.005,3298.6,3297.0,0.04895956]
[1721006193388,2.3273,3298.3,3297.0,0.04895956]
[1721006193572,9.629416,3298.2,3295.9,2.79130509]
[1721006193773,2.3273,3298.3,3296.1,2.73042]
[1721006193973,5.3273,3298.3,3296.3,1.829]
[1721006194172,0.5644851,3298.2,3296.4,0.25204347]
[1721006194481,3.5644851,3298.2,3296.5,2.73015]
[1721006194814,3.0,3298.2,3296.6,0.06064765]
[1721006194997,2.3273,3298.3,3296.9,4.55883]
[1721006195197,0.005,3298.6,3296.6,0.06064765]
[1721006195198,0.005,3298.6,3297.3,2.72945]
[1721006195403,0.005,3298.6,3298.0,2.72887]
[1721006195711,0.005,3298.6,3298.1,0.6106209]
[1721006196110,0.005,3298.6,3297.7,0.06061972]
[1721006196298,0.005,3298.6,3298.1,0.06061972]
[1721006196674,0.13872504,3299.2,3297.9,2.78954922]
[1721006196882,0.13872504,3299.2,3298.1,2.78944922]
[1721006197101,0.13872504,3299.2,3298.2,2.72869]
[1721006197308,0.13872504,3299.2,3298.4,2.72857]
[1721006197490,0.13872504,3299.2,3298.5,1.24453185]
[1721006198213,0.13872504,3299.2,3298.5,0.63391858]
[1721006198422,0.13872504,3299.2,3298.1,3.0]
[1721006198591,0.13872504,3299.2,3298.0,0.06061903]
[1721006198776,0.13872504,3299.2,3298.0,2.78951903]
[1721006199118,0.13872504,3299.2,3298.1,3.0]
[1721006199276,0.13872504,3299.2,3297.8,0.06062115]
[1721006199482,2.60302504,3299.2,3297.9,0.32968631]
[1721006199718,2.60302504,3299.2,3297.4,0.06062636]
[1721006199719,2.60302504,3299.2,3297.4,2.79004636]
[1721006199892,2.60302504,3299.2,3296.8,2.3636]
[1721006200091,3.0,3299.1,3297.0,2.72972]
[1721006200314,3.0,3299.1,3296.6,2.73]
[1721006200527,0.55,3299.0,3296.6,2.79064375]
[1721006200744,0.355,3298.9,3296.7,0.27906438]
[1721006200948,0.355,3298.9,3296.8,0.06064775]
[1721006201244,0.355,3298.9,3296.8,2.79055775]
[1721006201461,2.3952,3298.8,3296.2,2.73035]
[1721006201604,2.3952,3298.8,3296.0,6.0068]
[1721006201605,5.3952,3298.8,3296.7,2.72997]
[1721006201802,0.57502,3298.7,3296.8,0.33364178]
[1721006202053,3.57502,3298.7,3297.2,2.7295]
[1721006202207,2.3952,3298.8,3297.3,0.06063312]
[1721006202401,0.13872504,3299.2,3297.8,4.55807]
[1721006202605,0.13872504,3299.2,3297.9,3.0]
[1721006203256,0.13872504,3299.2,3296.6,3.635]
[1721006203455,0.13872504,3299.2,3296.9,6.34046631]
[1721006203738,2.3596,3299.1,3297.0,0.63404663]
[1721006204151,2.3596,3299.1,3296.9,0.06064259]
[1721006204310,2.3596,3299.1,3297.0,0.06064259]
[1721006204647,0.55,3299.0,3296.7,2.7906304]
[1721006204845,0.55,3299.0,3296.3,1.829]
[1721006204846,3.55,3299.0,3296.4,0.06064626]
[1721006205032,2.4156,3298.8,3296.3,2.73031]
[1721006205344,0.54156,3298.7,3297.2,2.72952]
[1721006205527,3.54156,3298.7,3297.3,0.06063848]
[1721006205741,9.629416,3298.6,3296.5,2.73014]
[1721006205939,3.54156,3298.7,3296.6,2.79065135]
[1721006206348,3.54156,3298.7,3296.8,2.7299]
[1721006206520,3.54156,3298.7,3296.9,3.57299]
[1721006206521,0.595716,3298.6,3296.9,3.57299]
[1721006206920,0.595716,3298.6,3296.9,0.57299]
[1721006207121,0.595716,3298.6,3297.0,0.06064844]
[1721006207321,0.595716,3298.6,3296.9,0.57299]
[1721006207852,0.595716,3298.6,3296.5,3.0]
[1721006208028,0.595716,3298.6,3296.7,2.72998]
[1721006208235,0.595716,3298.6,3297.3,2.72945]
[1721006208722,0.595716,3298.6,3297.4,0.06063809]
[1721006209119,2.4156,3298.8,3297.4,0.06063809]
[1721006209318,2.4156,3298.8,3297.5,2.72933]
[1721006209521,2.4156,3298.8,3297.6,2.78988735]
[1721006209942,2.4156,3298.8,3297.6,2.72925]
[1721006210123,2.4156,3298.8,3297.3,5.72943]
[1721006210324,0.24156,3298.7,3297.4,0.845899]
[1721006210866,0.24156,3298.7,3296.8,2.72991]
[1721006211047,0.24156,3298.7,3293.6,6.16974817]
[1721006211048,3.24156,3298.7,3296.9,3.0]
[1721006211248,9.629416,3298.6,3296.1,2.73045]
[1721006211562,2.3766,3298.5,3296.2,2.73041]
[1721006211746,2.9266,3298.4,3295.7,2.73081]
[1721006211948,3.55,3298.6,3295.8,0.273081]
[1721006211949,2.3766,3298.2,3295.8,0.273081]
[1721006212149,2.3766,3298.0,3295.3,2.73111]
[1721006212375,2.3766,3298.0,3296.6,2.73006]
[1721006212538,2.3766,3298.0,3295.7,2.4361]
[1721006212539,2.3766,3298.0,3296.2,2.73039]
[1721006212740,2.3766,3298.0,3296.1,0.06065138]
[1721006212741,2.3766,3298.0,3296.3,2.73032]
[1721006212958,2.3766,3298.0,3296.4,2.79083509]
[1721006213267,0.55541585,3297.9,3296.5,3.00923351]
[1721006213449,3.31775585,3297.9,3296.9,2.72982]
[1721006213779,3.31775585,3297.9,3296.7,2.72999]
[1721006213975,3.31775585,3297.9,3296.8,3.2799]
[1721006214132,0.31775585,3297.9,3296.9,3.0578]
[1721006214327,0.31775585,3297.9,3296.9,0.32799]
[1721006214563,0.31775585,3297.9,3296.8,2.7299]
[1721006215444,0.31775585,3297.9,3296.6,3.0]
[1721006215644,0.31775585,3297.9,3296.7,0.06065511]
[1721006215865,2.3526,3297.8,3296.6,2.73006]
[1721006216252,2.3526,3297.8,3296.5,3.27908351]
[1721006216595,0.26703559,3297.7,3296.5,3.27908351]
[1721006216804,0.26703559,3297.7,3296.2,3.0]
[1721006216953,0.26703559,3297.7,3296.0,2.73057]
[1721006217153,3.26703559,3297.7,3296.0,2.73057]
[1721006217383,2.3526,3297.5,3295.6,2.7309]
[1721006217583,5.3526,3297.5,3295.7,2.7308]
[1721006217794,0.59026,3297.4,3295.8,0.54617]
[1721006217997,3.59026,3297.4,3295.9,2.7306]
[1721006218181,3.59026,3297.4,3295.8,0.60684106]
[1721006218182,2.3526,3297.5,3296.0,0.06066239]
[1721006218504,2.3526,3297.5,3296.3,2.73031]
[1721006218686,2.3526,3297.5,3296.4,0.06065817]
[1721006218859,2.3526,3297.5,3296.5,2.7301]
[1721006219053,2.3526,3297.5,3296.7,2.72997]
[1721006219260,2.3526,3297.5,3296.8,0.2790625]
[1721006219504,2.3526,3297.5,3296.5,2.73008]
[1721006219693,2.3526,3297.5,3296.3,2.73027]
[1721006220004,2.3526,3297.5,3296.0,2.73056]
[1721006220208,2.3526,3297.5,3295.6,0.06065775]
[1721006220209,2.3526,3297.5,3296.3,2.73032]
[1721006220765,9.629416,3297.4,3295.9,2.73065]
[1721006221080,9.629416,3297.4,3295.4,7.43]
[1721006221081,1.1982016,3297.3,3296.1,2.73048]
[1721006221282,3.0,3297.4,3296.4,5.46037]
[1721006221600,2.3526,3297.5,3296.4,2.73018]
[1721006221800,2.3526,3297.5,3296.0,6.003635]
[1721006222120,2.3526,3297.5,3296.1,2.79115435]
[1721006222408,0.47613548,3297.3,3296.2,3.0]
[1721006222705,0.75900903,3297.3,3296.0,0.273065]
[1721006222868,0.75900903,3297.3,3295.4,10.77374111]
[1721006222869,0.75900903,3297.3,3295.7,5.73082]
[1721006223068,0.75900903,3297.3,3295.4,10.16107]
[1721006223266,2.3379,3297.2,3295.4,2.73107]
[1721006223492,5.3379,3297.2,3295.4,2.73107]
[1721006223713,5.3379,3297.2,3295.2,2.73124]
[1721006223919,5.3379,3297.2,3294.5,8.34900666]
[1721006223920,2.2698,3297.0,3294.5,8.04267111]
[1721006224071,2.2698,3297.0,3294.6,2.73174]
[1721006224265,2.2698,3296.8,3294.7,2.73165]
[1721006224470,0.55,3296.7,3294.8,2.73151]
[1721006224717,0.58198,3296.6,3294.9,0.546316]
[1721006224887,2.2728,3296.5,3294.7,2.73163]
[1721006225073,2.2728,3296.5,3294.5,2.73181]
[1721006225410,2.3704,3296.4,3294.3,2.73196]
[1721006225608,2.9204,3296.4,3293.9,2.7323]
[1721006225908,2.3704,3296.2,3293.7,2.73248]
[1721006226113,2.3704,3296.0,3293.9,2.73229]
[1721006226272,0.55,3295.9,3294.0,0.06070463]
[1721006226473,3.55,3295.9,3294.0,0.06070463]
[1721006226873,2.2997,3295.8,3294.0,0.06070463]
[1721006227216,5.2997,3295.8,3294.0,0.06070463]
[1721006227374,5.2997,3295.8,3294.1,0.27929946]
[1721006227375,0.58497,3295.7,3294.1,0.27929946]
[1721006227570,0.58497,3295.7,3293.7,2.73247]
[1721006227571,3.58497,3295.7,3293.9,2.73229]
[1721006228324,2.61769799,3295.6,3293.1,1.0505337]
[1721006228545,2.2997,3295.4,3293.2,2.73283]
[1721006228723,2.2997,3295.4,3293.1,6.7835137]
[1721006229034,0.52997,3295.3,3293.5,2.73259]
[1721006229202,3.52997,3295.3,3293.5,2.73259]
[1721006229724,3.52997,3295.3,3293.3,2.73279]
[1721006229891,2.484,3295.2,3293.2,3.41124137]
[1721006230092,2.3281,3295.1,3293.2,3.41124137]
[1721006230290,0.58781,3295.0,3293.3,0.74617751]
[1721006230529,2.8781,3294.9,3293.1,4.0505337]
[1721006230731,2.8781,3294.9,3293.1,1.0505337]
[1721006230952,2.8781,3294.9,3293.2,0.06072268]
[1721006230953,3.0,3294.8,3293.2,0.06072268]
[1721006231235,3.0,3294.8,3292.2,9.8976]
[1721006231236,2.35472276,3294.7,3292.4,2.73348]
[1721006231535,2.294,3294.5,3292.5,3.006798]
[1721006231740,0.06072276,3294.4,3292.5,3.006798]
[1721006231907,2.4853,3294.2,3292.5,0.273348]
[1721006232231,0.06072276,3294.1,3292.3,2.73364]
[1721006232538,3.06072276,3294.1,3292.4,3.0]
[1721006232893,3.0,3294.1,3292.4,5.73356]
[1721006233294,0.06072276,3294.0,3292.5,2.73347]
[1721006233499,3.0,3294.1,3292.6,2.73335]
[1721006233710,0.54853,3294.0,3292.7,3.006575]
[1721006234035,3.0,3294.1,3292.8,0.06072546]
[1721006234197,3.0,3294.1,3292.7,3.006575]
[1721006234399,2.4853,3294.2,3292.8,0.06072542]
[1721006234895,2.4853,3294.2,3292.8,2.79394542]
[1721006235096,2.4853,3294.2,3293.2,2.73289]
[1721006235296,2.407,3294.8,3293.7,2.73248]
[1721006235500,2.407,3294.8,3293.3,3.0]
[1721006235501,9.629416,3294.7,3293.3,3.0]
[1721006235696,0.06072276,3294.7,3293.2,5.73289]
[1721006235924,2.407,3294.8,3293.2,5.73289]
[1721006236125,0.2407,3294.7,3293.3,0.573289]
[1721006236346,0.2407,3294.7,3293.4,0.06071657]
[1721006236541,2.407,3294.8,3293.6,2.73254]
[1721006236863,2.407,3294.8,3293.9,2.73231]
[1721006237156,2.407,3294.8,3293.7,0.55]
[1721006237157,2.407,3294.8,3293.7,3.28244]
[1721006237368,2.407,3294.8,3293.7,0.55]
[1721006237526,9.69013876,3294.7,3293.2,3.0]
[1721006237721,0.30142276,3294.7,3293.3,0.57329]
[1721006238141,2.2767,3294.5,3292.9,0.30672804]
[1721006238360,0.06072276,3294.4,3292.7,3.006645]
[1721006238558,2.2679,3294.3,3292.6,2.73338]
[1721006238763,2.2679,3294.3,3292.5,2.73347]
[1721006238764,0.06072276,3294.2,3292.5,2.73347]
[1721006239071,2.2679,3294.3,3292.5,2.73347]
[1721006239072,2.2679,3294.3,3293.0,2.73306]
[1721006239226,2.2679,3294.3,3293.1,0.06071675]
[1721006239430,2.2679,3294.3,3293.1,2.79369675]
[1721006239625,2.2679,3294.3,3293.3,2.73281]
[1721006239824,2.2679,3294.3,3293.4,0.06071676]
[1721006240049,2.2679,3294.3,3293.5,0.27935268]
[1721006240233,2.2679,3294.3,3293.6,0.06071214]
[1721006240440,2.2679,3294.3,3293.6,2.79327214]
[1721006240754,2.2679,3294.3,3293.6,2.73256]
[1721006240968,2.2679,3294.3,3293.5,0.27935268]
[1721006241140,2.2679,3294.3,3293.5,3.01199268]
[1721006241346,2.2679,3294.3,3293.6,3.03375927]
[1721006241875,2.2679,3295.3,3293.6,0.30119927]
[1721006242116,0.06072276,3295.2,3293.6,0.30119927]
[1721006242687,2.2679,3295.3,3293.9,2.73225]
[1721006242878,2.2679,3295.3,3293.3,0.06070459]
[1721006243079,2.2679,3295.3,3293.8,2.73239]
[1721006243270,2.2679,3295.3,3294.0,2.73223]
[1721006243472,2.2679,3295.3,3294.1,0.06070459]
[1721006243784,0.54480793,3295.2,3293.9,2.73226]
[1721006243987,0.54480793,3295.2,3294.0,2.79293459]
[1721006244143,0.54480793,3295.2,3294.2,2.73206]
[1721006244350,0.54480793,3295.2,3294.3,0.06070126]
[1721006244656,0.31801793,3295.2,3294.3,0.06070126]
[1721006244855,0.31801793,3295.2,3294.7,2.73165]
[1721006245155,2.4172,3295.8,3295.1,2.7313]
[1721006245354,0.47613548,3297.3,3295.2,0.06068411]
[1721006245355,0.31796573,3296.1,3295.2,0.06068411]
[1721006245546,0.31796573,3296.1,3295.7,2.73082]
[1721006245746,2.4529,3296.4,3295.7,2.73082]
[1721006245968,2.4529,3296.4,3295.9,2.73065]
[1721006246198,0.31790554,3296.9,3296.1,2.73043]
[1721006246347,2.4529,3297.2,3296.1,2.73043]
[1721006246544,2.4529,3297.2,3296.3,2.73026]
[1721006246984,2.4529,3297.2,3296.3,2.79089183]
[1721006247159,2.4529,3297.2,3296.5,2.73009]
[1721006247787,2.4529,3297.2,3296.6,0.06065771]
[1721006248446,0.47613548,3297.3,3296.6,0.06065773]
[1721006248645,0.47613548,3297.3,3296.5,2.73009]
[1721006248646,0.47613548,3297.3,3296.5,2.73015]
[1721006250469,0.47613548,3297.3,3296.0,3.0]
[1721006250470,9.629416,3297.2,3296.0,3.0]
[1721006250689,0.47613548,3297.3,3296.5,1.829]
[1721006250939,0.47613548,3297.3,3297.2,2.72958]
[1721006251200,1e-08,3297.3,3297.2,8.45916]
[1721006251402,1e-08,3297.3,3297.2,11.134076]
[1721006251559,2.4669,3299.1,3297.4,2.72941]
[1721006251560,0.06072276,3298.5,3297.4,2.72941]
[1721006251757,0.31769502,3298.7,3297.4,2.72941]
[1721006251969,0.31769502,3298.7,3297.5,2.78997079]
[1721006252272,0.31769502,3298.7,3297.9,2.729]
[1721006252474,0.31769502,3298.7,3297.6,0.06063741]
[1721006252475,0.13872504,3299.2,3298.3,2.72867]
[1721006252658,0.13872504,3299.2,3298.3,2.7286]
[1721006252872,0.13872504,3299.2,3298.0,0.8229]
[1721006253058,0.13872504,3299.2,3297.6,3.0]
[1721006253059,0.13872504,3299.2,3297.9,2.72898]
[1721006253507,0.13872504,3299.2,3298.1,2.72883]
[1721006253659,0.13872504,3299.2,3298.5,2.72848]
[1721006254023,0.13872504,3299.2,3298.6,0.55]
[1721006254171,0.13872504,3299.2,3298.3,2.7286]
[1721006254519,0.13872504,3299.2,3298.4,3.57286]
[1721006254675,0.13872504,3299.2,3297.8,2.72902]
[1721006254880,0.13872504,3299.2,3297.9,3.0]
[1721006255084,0.13872504,3299.2,3297.3,0.0606303]
[1721006255085,9.69013876,3299.1,3297.3,0.0606303]
[1721006255396,9.69013876,3299.1,3296.6,2.4953]
[1721006255397,2.2642,3299.0,3297.1,2.72966]
[1721006255559,0.06072276,3298.9,3297.1,2.72965]
[1721006255760,2.2642,3299.0,3296.0,2.3893]
[1721006255761,0.23249228,3298.8,3296.0,2.3893]
[1721006256120,0.23249228,3298.8,3295.6,6.8563]
[1721006256121,2.2642,3299.0,3298.0,2.72884]
[1721006256264,2.2642,3299.0,3296.6,2.73]
[1721006256265,2.2642,3299.0,3297.3,2.79011262]
[1721006256621,2.2642,3299.0,3298.2,2.72875]
[1721006256765,0.13872504,3299.2,3298.3,0.06062234]
[1721006256966,0.13872504,3299.2,3298.1,2.72882]
[1721006257168,0.13872504,3299.2,3298.2,3.0]
[1721006257487,9.69013876,3299.1,3297.1,2.72966]
[1721006257801,0.13872504,3299.2,3297.7,2.72913]
[1721006258002,0.13872504,3299.2,3297.5,2.7293]
[1721006258212,0.13872504,3299.2,3297.7,2.7291]
[1721006258497,0.13872504,3299.2,3297.7,0.27897311]
[1721006258711,0.13872504,3299.2,3297.5,0.06063111]
[1721006258876,0.13872504,3299.2,3297.0,2.2738]
[1721006258877,0.13872504,3299.2,3298.1,2.72884]
[1721006259087,0.13872504,3299.2,3298.2,3.6106215]
[1721006259263,0.13872504,3299.2,3298.4,2.72859]
[1721006259464,0.13872504,3299.2,3298.5,0.06061904]
[1721006259663,0.13872504,3299.2,3298.3,0.06062204]
[1721006259964,0.13872504,3299.2,3298.5,2.72851]
[1721006260182,0.13872504,3299.2,3298.7,2.72833]
[1721006260864,0.13872504,3299.2,3298.9,2.72818]
[1721006261065,0.13872504,3299.2,3299.0,0.06060833]
[1721006261268,0.13872504,3299.2,3299.1,2.72801]
[1721006261490,0.13872504,3299.2,3299.1,4.01176183]
[1721006261681,0.13872504,3299.2,3298.8,2.72824]
[1721006261881,0.13872504,3299.2,3299.1,2.72801]
[1721006262104,0.13872504,3299.2,3299.1,3.27801]
[1721006262264,0.13872504,3299.2,3299.1,3.338615]
[1721006262468,0.13872504,3299.2,3299.1,6.338615]
[1721006262708,0.13872504,3299.2,3299.1,7.1846785]
[1721006262887,0.13872504,3299.2,3298.5,2.7285]
[1721006263102,0.13872504,3299.2,3298.8,2.72819]
[1721006263276,0.13872504,3299.2,3299.1,2.72801]
[1721006263467,0.13872504,3299.2,3299.1,3.55]
[1721006263867,0.13872504,3299.2,3299.1,0.55]
[1721006264063,0.13872504,3299.2,3299.1,5.45602]
[1721006264373,0.13872504,3299.2,3299.1,6.878612]
[1721006264670,0.13872504,3299.2,3299.1,4.150602]
[1721006264871,0.13872504,3299.2,3298.5,2.7285]
[1721006265074,0.13872504,3299.2,3298.6,3.55]
[1721006265309,0.13872504,3299.2,3298.6,0.55]
[1721006265496,0.13872504,3299.2,3298.4,0.3060622]
[1721006265695,0.13872504,3299.2,3298.3,0.0606165]
[1721006266510,0.13872504,3299.2,3298.0,0.06057164]
[1721006267505,0.13872504,3299.2,3298.0,2.78947164]
[1721006267697,0.13872504,3299.2,3298.0,0.06057164]
[1721006267896,0.13872504,3299.2,3298.1,0.55]
[1721006268113,0.13872504,3299.2,3298.1,0.88395516]
[1721006268508,9.629416,3299.1,3298.1,0.33395516]
[1721006268704,0.13872504,3299.2,3298.2,0.0606225]
[1721006268904,0.13872504,3299.2,3297.8,2.7897025]
[1721006269105,0.13872504,3299.2,3298.0,2.72888]
[1721006269307,0.13872504,3299.2,3298.1,3.33938636]
[1721006269509,0.13872504,3299.2,3298.2,0.55]
[1721006270448,9.629416,3299.1,3297.9,3.0]
[1721006270729,0.98288638,3299.0,3297.6,2.72925]
[1721006270891,0.13872504,3299.2,3297.7,3.06062791]
[1721006271294,0.13872504,3299.2,3297.7,3.0]
[1721006271515,2.40972276,3299.1,3297.0,2.72974]
[1721006271820,2.40972276,3299.1,3296.5,2.73009]
[1721006272025,2.4725,3298.7,3296.3,0.06065154]
[1721006272261,2.53322276,3298.6,3296.3,0.06065154]
[1721006272433,2.4725,3298.1,3296.3,0.06065154]
[1721006272641,0.06072276,3298.0,3296.3,0.06065154]
[1721006273133,3.06072276,3298.0,3296.1,1.829]
[1721006273334,2.99812228,3297.9,3296.2,0.51660661]
[1721006273558,2.99812228,3297.9,3295.8,0.06066227]
[1721006273559,3.0,3297.8,3295.8,0.06066227]
[1721006273704,3.0,3297.8,3295.8,1.88966227]
[1721006273910,3.0,3297.8,3296.1,2.73047]
[1721006274107,3.0,3297.8,3296.2,0.06065416]
[1721006274338,0.59981223,3297.7,3296.3,0.33976654]
[1721006275017,2.4448,3297.9,3296.4,4.55924]
[1721006275330,2.4448,3297.9,3296.7,2.72996]
[1721006275537,2.4448,3297.9,3296.8,5.43964291]
[1721006275709,2.3379,3298.4,3297.0,2.72972]
[1721006275913,2.3379,3298.4,3297.1,0.06063739]
[1721006276132,2.3379,3298.4,3297.1,3.06933413]